[Event "Rapid della Domenica"]
[Site "Chess.com"]
[Date "2020.04.26"]
[Round "5"]
[White "GB86_CHESS"]
[Black "donaldnecesito"]
[Result "1-0"]
[WhiteElo "1745"]
[BlackElo "1638"]
[TimeControl "720+3"]
[EndTime "7:53:19 PDT"]
[Termination "GB86_CHESS ha vinto per abbandono"]

1. c4 {[%clk 0:11:46.4]} 1... Nf6 {[%clk 0:11:59.5]} 2. g3 {[%clk 0:11:46.9]}
2... e5 {[%clk 0:11:59.4]} 3. Bg2 {[%clk 0:11:48.8]} 3... Nc6 {[%clk 0:11:53]}
4. Nc3 {[%clk 0:11:31]} 4... Be7 {[%clk 0:11:48.6]} 5. Nf3 {[%clk 0:11:30]} 5...
d6 {[%clk 0:11:49.7]} 6. O-O {[%clk 0:11:31.2]} 6... O-O {[%clk 0:11:50.8]} 7.
d3 {[%clk 0:11:16.9]} 7... h6 {[%clk 0:11:49.6]} 8. e4 {[%clk 0:11:12.8]} 8...
Be6 {[%clk 0:11:46.2]} 9. h3 {[%clk 0:11:07.9]} 9... Qd7 {[%clk 0:11:45.9]} 10.
Kh2 {[%clk 0:11:09.8]} 10... Nh7 {[%clk 0:11:37.4]} 11. g4 {[%clk 0:10:53.7]}
11... Nd4 {[%clk 0:11:13.2]} 12. Nxd4 {[%clk 0:10:51.7]} 12... exd4 {[%clk
0:11:14.7]} 13. Ne2 {[%clk 0:10:52.5]} 13... c5 {[%clk 0:11:11.5]} 14. Ng3
{[%clk 0:10:54.3]} 14... Bf6 {[%clk 0:11:12.4]} 15. f4 {[%clk 0:10:55.5]} 15...
Qc7 {[%clk 0:11:06.2]} 16. f5 {[%clk 0:10:56.6]} 16... Bd7 {[%clk 0:11:06.6]}
17. Bf4 {[%clk 0:10:58.2]} 17... Be5 {[%clk 0:11:08]} 18. Qd2 {[%clk 0:10:48]}
18... f6 {[%clk 0:10:42.4]} 19. h4 {[%clk 0:10:42.3]} 19... Be8 {[%clk
0:10:38.8]} 20. Bf3 {[%clk 0:10:22.8]} 20... a6 {[%clk 0:10:27]} 21. Rg1 {[%clk
0:10:20]} 21... b6 {[%clk 0:10:28.1]} 22. Bxe5 {[%clk 0:09:50.3]} 22... dxe5
{[%clk 0:10:16.5]} 23. Nh1 {[%clk 0:09:29]} 23... Ra7 {[%clk 0:10:03.4]} 24. Nf2
{[%clk 0:09:28.6]} 24... Rf7 {[%clk 0:09:47.1]} 25. Nh3 {[%clk 0:09:28.2]} 25...
Nf8 {[%clk 0:09:45.9]} 26. g5 {[%clk 0:09:22.6]} 26... fxg5 {[%clk 0:09:43.4]}
27. hxg5 {[%clk 0:09:24.3]} 27... hxg5 {[%clk 0:09:44.9]} 28. Rxg5 {[%clk
0:09:19.6]} 28... Rf6 {[%clk 0:09:46.5]} 29. Rag1 {[%clk 0:09:18.6]} 29... Qd6
{[%clk 0:09:39]} 30. Qg2 {[%clk 0:09:15.9]} 30... g6 {[%clk 0:09:30.9]} 31. fxg6
{[%clk 0:08:42.4]} 31... Rxg6 {[%clk 0:09:14.8]} 32. Bh5 {[%clk 0:08:31.3]}
32... Rag7 {[%clk 0:08:51.2]} 33. Bxg6 {[%clk 0:08:26.5]} 33... Nxg6 {[%clk
0:08:43.4]} 34. Qg3 {[%clk 0:08:05.8]} 34... Qf6 {[%clk 0:08:38.3]} 35. Kg2
{[%clk 0:07:56.8]} 35... Bd7 {[%clk 0:08:34.1]} 36. Kh2 {[%clk 0:07:43.8]} 36...
Bxh3 {[%clk 0:08:30]} 37. Qxh3 {[%clk 0:06:54]} 37... Kf7 {[%clk 0:07:33.4]} 38.
Qd7+ {[%clk 0:06:47.8]} 38... Qe7 {[%clk 0:07:31.7]} 39. Qxe7+ {[%clk
0:06:47.1]} 39... Kxe7 {[%clk 0:07:28.7]} 40. Rxg6 {[%clk 0:06:48]} 40... Rh7+
{[%clk 0:07:31.3]} 41. Kg3 {[%clk 0:06:45.3]} 41... Kf7 {[%clk 0:07:32.7]} 42.
Kf3 {[%clk 0:06:44.1]} 42... Rh3+ {[%clk 0:07:32.6]} 43. R6g3 {[%clk 0:06:44.2]}
43... Rh4 {[%clk 0:07:32.1]} 44. Rg7+ {[%clk 0:06:38.9]} 44... Kf8 {[%clk
0:07:31.7]} 45. Rb7 {[%clk 0:06:38.4]} 45... Rf4+ {[%clk 0:07:28.8]} 46. Ke2
{[%clk 0:06:39.2]} 46... b5 {[%clk 0:07:28.2]} 47. cxb5 {[%clk 0:06:38.6]} 47...
axb5 {[%clk 0:07:31.1]} 48. Rf1 {[%clk 0:06:39.3]} 1-0

[Event "Rapid della Domenica"]
[Site "Chess.com"]
[Date "2020.04.26"]
[Round "5"]
[White "bellapero"]
[Black "fausto2p"]
[Result "1-0"]
[WhiteElo "1370"]
[BlackElo "1004"]
[TimeControl "720+3"]
[EndTime "8:02:47 PDT"]
[Termination "bellapero ha vinto per tempo"]

1. e4 {[%clk 0:12:02.9]} 1... e6 {[%clk 0:11:59.9]} 2. d4 {[%clk 0:12:02.8]}
2... d5 {[%clk 0:11:53.2]} 3. exd5 {[%clk 0:11:49.1]} 3... exd5 {[%clk
0:11:54.1]} 4. Nf3 {[%clk 0:11:43.6]} 4... Nf6 {[%clk 0:11:54]} 5. Nc3 {[%clk
0:11:43.8]} 5... c6 {[%clk 0:11:20.5]} 6. Be2 {[%clk 0:11:26.8]} 6... Bd6 {[%clk
0:11:20.1]} 7. O-O {[%clk 0:11:20]} 7... O-O {[%clk 0:11:20.9]} 8. Be3 {[%clk
0:10:35.6]} 8... Bf5 {[%clk 0:11:05.2]} 9. Bd3 {[%clk 0:10:21]} 9... Bxd3 {[%clk
0:10:51.9]} 10. Qxd3 {[%clk 0:10:21.4]} 10... Nbd7 {[%clk 0:10:32.7]} 11. Rfe1
{[%clk 0:10:10.9]} 11... Re8 {[%clk 0:10:33.3]} 12. Qf5 {[%clk 0:08:44]} 12...
Nf8 {[%clk 0:09:05.4]} 13. Bg5 {[%clk 0:08:18.6]} 13... Be7 {[%clk 0:07:44.1]}
14. Ne5 {[%clk 0:07:34.7]} 14... g6 {[%clk 0:07:29.5]} 15. Qh3 {[%clk
0:07:12.9]} 15... Nh5 {[%clk 0:06:16.1]} 16. Bxe7 {[%clk 0:06:55.9]} 16... Rxe7
{[%clk 0:06:14.7]} 17. Qh4 {[%clk 0:06:24.3]} 17... Ne6 {[%clk 0:05:50.5]} 18.
Na4 {[%clk 0:06:00.3]} 18... Qd6 {[%clk 0:05:09.7]} 19. Nc5 {[%clk 0:05:42.8]}
19... Rae8 {[%clk 0:03:40.2]} 20. c3 {[%clk 0:05:29.7]} 20... Nxc5 {[%clk
0:03:08.7]} 21. dxc5 {[%clk 0:04:46.2]} 21... Qxc5 {[%clk 0:03:07.5]} 22. Nd3
{[%clk 0:04:23.1]} 22... Rxe1+ {[%clk 0:02:50.7]} 23. Rxe1 {[%clk 0:03:58.6]}
23... Rxe1+ {[%clk 0:02:44.7]} 24. Nxe1 {[%clk 0:03:58.9]} 24... Qd6 {[%clk
0:01:04]} 25. g4 {[%clk 0:03:16.4]} 25... Nf6 {[%clk 0:00:47.8]} 26. g5 {[%clk
0:02:31.4]} 26... Ne4 {[%clk 0:00:32.7]} 27. f3 {[%clk 0:02:21.6]} 27... Nd2
{[%clk 0:00:17.8]} 28. Qf2 {[%clk 0:02:07.9]} 1-0

[Event "Rapid della Domenica"]
[Site "Chess.com"]
[Date "2020.04.26"]
[Round "6"]
[White "markk000"]
[Black "toninoiuorio"]
[Result "1-0"]
[WhiteElo "1545"]
[BlackElo "1515"]
[TimeControl "720+3"]
[EndTime "8:16:55 PDT"]
[Termination "markk000 ha vinto per scaccomatto"]

1. d4 {[%clk 0:12:02.9]} 1... d5 {[%clk 0:12:01.3]} 2. c4 {[%clk 0:12:03.2]}
2... e6 {[%clk 0:12:02.8]} 3. Nc3 {[%clk 0:12:03.6]} 3... Nf6 {[%clk 0:12:04.5]}
4. Bg5 {[%clk 0:12:04.7]} 4... Be7 {[%clk 0:12:06.6]} 5. Nf3 {[%clk 0:12:05.9]}
5... O-O {[%clk 0:12:08.8]} 6. e3 {[%clk 0:12:07.7]} 6... c6 {[%clk 0:12:11.2]}
7. cxd5 {[%clk 0:12:09.1]} 7... exd5 {[%clk 0:12:10.6]} 8. Bd3 {[%clk
0:12:10.7]} 8... Bg4 {[%clk 0:12:12]} 9. h3 {[%clk 0:12:10.6]} 9... Bh5 {[%clk
0:12:12.7]} 10. O-O {[%clk 0:12:11.8]} 10... Nbd7 {[%clk 0:12:13.6]} 11. Be2
{[%clk 0:12:05.9]} 11... Re8 {[%clk 0:12:14.6]} 12. Bxf6 {[%clk 0:12:06.3]}
12... Nxf6 {[%clk 0:12:10.4]} 13. Ne5 {[%clk 0:12:08.1]} 13... Bxe2 {[%clk
0:12:10.5]} 14. Qxe2 {[%clk 0:12:11]} 14... Bd6 {[%clk 0:12:11.2]} 15. Ng4
{[%clk 0:12:03.3]} 15... Ne4 {[%clk 0:12:08.7]} 16. Nxe4 {[%clk 0:11:59.1]}
16... Rxe4 {[%clk 0:12:07.4]} 17. Qf3 {[%clk 0:11:40.1]} 17... Qg5 {[%clk
0:11:51.2]} 18. a3 {[%clk 0:11:27]} 18... f5 {[%clk 0:11:50.1]} 19. Nh2 {[%clk
0:11:18.9]} 19... Rf8 {[%clk 0:11:32]} 20. Rae1 {[%clk 0:11:02]} 20... Qh4
{[%clk 0:11:30.1]} 21. Qe2 {[%clk 0:10:48.1]} 21... g5 {[%clk 0:11:29.4]} 22.
Nf3 {[%clk 0:10:34.6]} 22... Qh6 {[%clk 0:11:30.5]} 23. Nd2 {[%clk 0:10:28.4]}
23... Re7 {[%clk 0:11:25.2]} 24. Nf3 {[%clk 0:10:03.5]} 24... g4 {[%clk
0:11:21.6]} 25. Ne5 {[%clk 0:09:59.2]} 25... gxh3 {[%clk 0:11:13]} 26. g3 {[%clk
0:09:34.2]} 26... Rg7 {[%clk 0:09:37.8]} 27. Qf3 {[%clk 0:08:56.2]} 27... f4
{[%clk 0:09:30.4]} 28. exf4 {[%clk 0:08:42]} 28... Rxf4 {[%clk 0:09:20.5]} 29.
Qe2 {[%clk 0:08:08]} 29... Rxd4 {[%clk 0:08:58]} 30. Kh2 {[%clk 0:07:41.9]}
30... Re4 {[%clk 0:08:56.5]} 31. Qf3 {[%clk 0:06:58]} 31... Bxe5 {[%clk
0:08:47]} 32. Rxe4 {[%clk 0:06:59.1]} 32... dxe4 {[%clk 0:08:48.6]} 33. Qxe4
{[%clk 0:06:56.7]} 33... Qe6 {[%clk 0:08:47.9]} 34. f4 {[%clk 0:06:42.5]} 34...
Re7 {[%clk 0:08:28.3]} 35. fxe5 {[%clk 0:06:41.3]} 35... Qxe5 {[%clk 0:08:28.7]}
36. Qg4+ {[%clk 0:06:39.2]} 36... Kh8 {[%clk 0:07:32.3]} 37. Rf8# {[%clk
0:06:36.5]} 1-0

[Event "Rapid della Domenica"]
[Site "Chess.com"]
[Date "2020.04.26"]
[Round "6"]
[White "pedrak"]
[Black "GB86_CHESS"]
[Result "0-1"]
[WhiteElo "1642"]
[BlackElo "1790"]
[TimeControl "720+3"]
[EndTime "8:22:13 PDT"]
[Termination "GB86_CHESS ha vinto per scaccomatto"]

1. d4 {[%clk 0:12:02.9]} 1... e6 {[%clk 0:11:59.2]} 2. Nf3 {[%clk 0:12:05.8]}
2... Nf6 {[%clk 0:11:59.2]} 3. Bf4 {[%clk 0:12:06.4]} 3... b6 {[%clk 0:11:59.5]}
4. e3 {[%clk 0:12:07.1]} 4... Bb7 {[%clk 0:11:58.7]} 5. Nbd2 {[%clk 0:12:08.2]}
5... d6 {[%clk 0:11:54.8]} 6. Be2 {[%clk 0:12:08.3]} 6... Be7 {[%clk 0:11:56.6]}
7. O-O {[%clk 0:12:09.6]} 7... O-O {[%clk 0:11:58]} 8. c3 {[%clk 0:12:11.1]}
8... Ne4 {[%clk 0:11:58.2]} 9. Qc2 {[%clk 0:12:11.7]} 9... f5 {[%clk 0:11:58.6]}
10. h3 {[%clk 0:12:08.2]} 10... Nxd2 {[%clk 0:12:00]} 11. Qxd2 {[%clk
0:12:08.2]} 11... g5 {[%clk 0:12:01.7]} 12. Bh2 {[%clk 0:12:07.4]} 12... Nd7
{[%clk 0:12:03.7]} 13. Bd3 {[%clk 0:11:49.8]} 13... g4 {[%clk 0:11:37.6]} 14.
hxg4 {[%clk 0:11:45.8]} 14... fxg4 {[%clk 0:11:38.6]} 15. Ne1 {[%clk 0:11:46.8]}
15... Bg5 {[%clk 0:11:36.7]} 16. Qe2 {[%clk 0:11:42.3]} 16... h5 {[%clk
0:11:32.3]} 17. f4 {[%clk 0:11:38.7]} 17... Bh6 {[%clk 0:10:56.1]} 18. Bg3
{[%clk 0:10:56.3]} 18... Qf6 {[%clk 0:10:36.3]} 19. e4 {[%clk 0:10:48.4]} 19...
Qg7 {[%clk 0:10:34.1]} 20. e5 {[%clk 0:10:19.6]} 20... dxe5 {[%clk 0:10:28]} 21.
dxe5 {[%clk 0:10:13.4]} 21... Nc5 {[%clk 0:10:27.4]} 22. Bc4 {[%clk 0:10:11.6]}
22... Qe7 {[%clk 0:10:23.7]} 23. Nd3 {[%clk 0:10:08.8]} 23... Ne4 {[%clk
0:10:16.6]} 24. Be1 {[%clk 0:10:05.1]} 24... Rf5 {[%clk 0:10:12.5]} 25. Rd1
{[%clk 0:09:55.5]} 25... Raf8 {[%clk 0:10:08.8]} 26. Bd2 {[%clk 0:09:55.7]}
26... Kh8 {[%clk 0:09:48.7]} 27. Bb3 {[%clk 0:09:45.4]} 27... Ng3 {[%clk
0:09:42.9]} 28. Qe3 {[%clk 0:09:42]} 28... Qh4 {[%clk 0:09:38.7]} 29. Nf2 {[%clk
0:07:51]} 29... Bxf4 {[%clk 0:09:19.7]} 30. Qd3 {[%clk 0:07:46.4]} 30... Bxd2
{[%clk 0:09:17.2]} 31. Qxd2 {[%clk 0:07:48.2]} 31... Kg7 {[%clk 0:07:28.4]} 32.
Qd7+ {[%clk 0:07:26.2]} 32... R8f7 {[%clk 0:07:24.1]} 33. Qxe6 {[%clk
0:07:27.8]} 33... Rxf2 {[%clk 0:06:58.8]} 34. Qxf7+ {[%clk 0:07:28.8]} 34...
Rxf7 {[%clk 0:06:57.7]} 35. Rxf7+ {[%clk 0:07:30.4]} 35... Kg6 {[%clk
0:06:59.6]} 36. Rf6+ {[%clk 0:07:30.9]} 36... Kg5 {[%clk 0:06:56.9]} 37. Rd7
{[%clk 0:07:10.7]} 37... Qh1+ {[%clk 0:06:46.1]} 38. Kf2 {[%clk 0:07:12.1]}
38... Qxg2+ {[%clk 0:06:47.9]} 39. Ke3 {[%clk 0:07:13.5]} 39... Qe4+ {[%clk
0:06:42.7]} 40. Kd2 {[%clk 0:07:10.2]} 40... Qe2+ {[%clk 0:06:44.2]} 41. Kc1
{[%clk 0:07:10.6]} 41... Qe3+ {[%clk 0:06:45.8]} 42. Kd1 {[%clk 0:06:55.5]}
42... Bf3+ {[%clk 0:06:14.2]} 43. Kc2 {[%clk 0:06:48.5]} 43... Be4+ {[%clk
0:06:13.4]} 44. Kd1 {[%clk 0:06:49.6]} 44... Bf3+ {[%clk 0:05:54.2]} 45. Kc2
{[%clk 0:06:50.2]} 45... Qxe5 {[%clk 0:05:52.6]} 46. Rdf7 {[%clk 0:06:39.1]}
46... Qxf6 {[%clk 0:05:47.4]} 47. Rxf6 {[%clk 0:06:36.3]} 47... Kxf6 {[%clk
0:05:49.5]} 48. Kd3 {[%clk 0:06:37.7]} 48... Ke5 {[%clk 0:05:51.1]} 49. Ke3
{[%clk 0:06:39.4]} 49... Nf5+ {[%clk 0:05:52.4]} 50. Kf2 {[%clk 0:06:40.9]}
50... Kf4 {[%clk 0:05:54.6]} 51. Be6 {[%clk 0:06:41]} 51... g3+ {[%clk
0:05:56.1]} 52. Kg1 {[%clk 0:06:42.4]} 52... h4 {[%clk 0:05:58.2]} 53. Bxf5
{[%clk 0:05:16.7]} 53... Kxf5 {[%clk 0:05:45.9]} 54. c4 {[%clk 0:05:14.7]} 54...
h3 {[%clk 0:05:46.1]} 55. c5 {[%clk 0:05:13.8]} 55... h2+ {[%clk 0:05:47.5]} 56.
Kf1 {[%clk 0:05:15.2]} 56... h1=R# {[%clk 0:05:47.4]} 0-1

[Event "Rapid della Domenica"]
[Site "Chess.com"]
[Date "2020.04.26"]
[Round "6"]
[White "crippo"]
[Black "giulioscaglione"]
[Result "0-1"]
[WhiteElo "1450"]
[BlackElo "1341"]
[TimeControl "720+3"]
[EndTime "8:23:27 PDT"]
[Termination "giulioscaglione ha vinto per abbandono"]

1. e4 {[%clk 0:12:02.9]} 1... e6 {[%clk 0:12:01.6]} 2. d4 {[%clk 0:12:04.1]}
2... b6 {[%clk 0:12:01.9]} 3. Nc3 {[%clk 0:12:04]} 3... Bb4 {[%clk 0:12:03.2]}
4. Bf4 {[%clk 0:12:04.3]} 4... Bb7 {[%clk 0:12:03.2]} 5. Bd3 {[%clk 0:12:03.2]}
5... d6 {[%clk 0:11:55.2]} 6. Ne2 {[%clk 0:12:04.9]} 6... Nd7 {[%clk 0:11:41.4]}
7. O-O {[%clk 0:12:05.1]} 7... Ne7 {[%clk 0:11:41.2]} 8. e5 {[%clk 0:12:05.9]}
8... Bxc3 {[%clk 0:11:40.2]} 9. bxc3 {[%clk 0:12:07]} 9... d5 {[%clk 0:11:30.9]}
10. Bg5 {[%clk 0:12:05.1]} 10... O-O {[%clk 0:11:32.1]} 11. Nf4 {[%clk
0:12:06.1]} 11... Qe8 {[%clk 0:11:21.3]} 12. Qh5 {[%clk 0:12:05.2]} 12... Ng6
{[%clk 0:11:14.2]} 13. Qh3 {[%clk 0:11:53.7]} 13... a5 {[%clk 0:10:47.8]} 14.
Nh5 {[%clk 0:11:43.1]} 14... Ba6 {[%clk 0:10:26.4]} 15. Nxg7 {[%clk 0:11:44.4]}
15... Kxg7 {[%clk 0:08:40.1]} 16. Qh6+ {[%clk 0:11:37.3]} 16... Kg8 {[%clk
0:08:41.5]} 17. h4 {[%clk 0:11:26.1]} 17... Bxd3 {[%clk 0:08:37.2]} 18. cxd3
{[%clk 0:11:26.8]} 18... f5 {[%clk 0:08:09.2]} 19. exf6 {[%clk 0:11:25]} 19...
Nxf6 {[%clk 0:08:06.3]} 20. h5 {[%clk 0:11:26.7]} 20... Ng4 {[%clk 0:07:51.8]}
21. hxg6 {[%clk 0:10:57.8]} 21... Nxh6 {[%clk 0:07:52.1]} 22. Bxh6 {[%clk
0:10:54.1]} 22... Rf6 {[%clk 0:07:42.3]} 23. gxh7+ {[%clk 0:10:54.1]} 23... Kxh7
{[%clk 0:07:39.6]} 24. Bg5 {[%clk 0:10:54.6]} 24... Rg6 {[%clk 0:07:32.9]} 25.
f4 {[%clk 0:10:56.6]} 25... Qc6 {[%clk 0:06:57.5]} 26. Rac1 {[%clk 0:10:52.3]}
26... b5 {[%clk 0:06:28]} 27. Rf3 {[%clk 0:10:51.8]} 27... Kg7 {[%clk
0:05:57.4]} 28. Re3 {[%clk 0:10:39.2]} 28... Re8 {[%clk 0:05:27.5]} 29. Rc2
{[%clk 0:10:29.3]} 29... Qb6 {[%clk 0:05:03.8]} 30. Kf1 {[%clk 0:10:12.4]} 30...
c5 {[%clk 0:05:04.3]} 31. dxc5 {[%clk 0:10:13.2]} 31... Qxc5 {[%clk 0:04:58.9]}
32. d4 {[%clk 0:10:15.2]} 32... Qc4+ {[%clk 0:04:52]} 33. Kf2 {[%clk 0:10:15.1]}
33... b4 {[%clk 0:04:52.1]} 34. Rce2 {[%clk 0:10:15]} 34... Qc6 {[%clk
0:04:21.9]} 35. cxb4 {[%clk 0:10:12.9]} 35... axb4 {[%clk 0:04:22.4]} 36. Bh4
{[%clk 0:10:05.6]} 36... Rf8 {[%clk 0:04:11.5]} 37. g3 {[%clk 0:10:06.3]} 37...
Rh8 {[%clk 0:03:26.4]} 38. a3 {[%clk 0:09:50.7]} 38... bxa3 {[%clk 0:03:26.6]}
39. Rxa3 {[%clk 0:09:50.9]} 39... Ra8 {[%clk 0:03:13]} 40. Rd3 {[%clk
0:09:45.9]} 40... Ra4 {[%clk 0:03:02]} 41. Red2 {[%clk 0:09:41.7]} 41... Ra1
{[%clk 0:02:46.4]} 42. Be7 {[%clk 0:09:38.2]} 42... Kf7 {[%clk 0:02:38.8]} 43.
Bc5 {[%clk 0:09:39.4]} 43... Rh6 {[%clk 0:02:26.8]} 44. Kf3 {[%clk 0:09:38.5]}
44... Rhh1 {[%clk 0:02:23.2]} 45. Rb2 {[%clk 0:09:36.4]} 45... Raf1+ {[%clk
0:02:16.8]} 46. Kg4 {[%clk 0:09:36.9]} 46... Qe8 {[%clk 0:01:58.9]} 47. Rb7+
{[%clk 0:09:31.8]} 47... Kf6 {[%clk 0:01:48.2]} 48. Be7+ {[%clk 0:09:06.8]}
48... Qxe7 {[%clk 0:01:45.4]} 49. Rxe7 {[%clk 0:09:06.8]} 49... Kxe7 {[%clk
0:01:47.4]} 50. Kg5 {[%clk 0:09:07.7]} 50... Rd1 {[%clk 0:01:49.3]} 51. Ra3
{[%clk 0:08:59.7]} 51... Rxd4 {[%clk 0:01:50]} 52. Ra7+ {[%clk 0:09:01.4]} 52...
Kd6 {[%clk 0:01:51.5]} 53. g4 {[%clk 0:09:00.9]} 53... Rf1 {[%clk 0:01:51.6]}
54. f5 {[%clk 0:09:01.3]} 54... exf5 {[%clk 0:01:52.9]} 55. gxf5 {[%clk
0:09:03.3]} 55... Rdf4 {[%clk 0:01:53.5]} 56. Ra6+ {[%clk 0:09:04.5]} 56... Kc5
{[%clk 0:01:54.4]} 57. f6 {[%clk 0:09:03.9]} 57... Rxf6 {[%clk 0:01:50.1]} 58.
Rxf6 {[%clk 0:09:04]} 58... Rxf6 {[%clk 0:01:51.7]} 59. Kxf6 {[%clk 0:09:06.6]}
59... d4 {[%clk 0:01:53.6]} 60. Ke5 {[%clk 0:09:09.5]} 60... d3 {[%clk
0:01:55.6]} 61. Ke4 {[%clk 0:09:12.4]} 61... d2 {[%clk 0:01:57.8]} 62. Ke3
{[%clk 0:09:15.3]} 62... d1=Q {[%clk 0:01:59.6]} 63. Ke4 {[%clk 0:09:16.6]}
63... Qd4+ {[%clk 0:01:59.9]} 64. Kf3 {[%clk 0:09:18]} 64... Kd5 {[%clk
0:02:01.5]} 65. Ke2 {[%clk 0:09:19.3]} 65... Ke4 {[%clk 0:02:01.5]} 66. Ke1
{[%clk 0:09:19.9]} 66... Qb2 {[%clk 0:02:02]} 67. Kd1 {[%clk 0:09:21.5]} 67...
Ke3 {[%clk 0:02:01.7]} 0-1

[Event "Rapid della Domenica"]
[Site "Chess.com"]
[Date "2020.04.26"]
[Round "6"]
[White "donaldnecesito"]
[Black "bellapero"]
[Result "1-0"]
[WhiteElo "1649"]
[BlackElo "1353"]
[TimeControl "720+3"]
[EndTime "8:23:32 PDT"]
[Termination "donaldnecesito ha vinto per abbandono"]

1. e4 {[%clk 0:12:02.9]} 1... c5 {[%clk 0:12:01.2]} 2. Nf3 {[%clk 0:12:03.4]}
2... Nc6 {[%clk 0:12:00.6]} 3. d4 {[%clk 0:12:05.9]} 3... cxd4 {[%clk
0:12:00.7]} 4. Nxd4 {[%clk 0:12:08.4]} 4... Nf6 {[%clk 0:11:51.6]} 5. Nc3 {[%clk
0:12:02.3]} 5... g6 {[%clk 0:11:41.8]} 6. Be3 {[%clk 0:12:00.7]} 6... Bg7 {[%clk
0:11:39.6]} 7. Bc4 {[%clk 0:11:53.1]} 7... e6 {[%clk 0:11:25.6]} 8. f3 {[%clk
0:11:49.2]} 8... O-O {[%clk 0:11:26.2]} 9. Qd2 {[%clk 0:11:50.4]} 9... d5 {[%clk
0:10:47.7]} 10. exd5 {[%clk 0:11:45.4]} 10... exd5 {[%clk 0:10:38.8]} 11. Bb3
{[%clk 0:11:17.8]} 11... Re8 {[%clk 0:09:58.3]} 12. O-O-O {[%clk 0:11:12.4]}
12... Bf5 {[%clk 0:09:23.1]} 13. Nxf5 {[%clk 0:11:02.8]} 13... gxf5 {[%clk
0:09:10.9]} 14. Kb1 {[%clk 0:10:35]} 14... d4 {[%clk 0:08:20.9]} 15. Bxd4 {[%clk
0:10:28.4]} 15... Nxd4 {[%clk 0:08:18.9]} 16. Qxd4 {[%clk 0:10:29]} 16... Nd7
{[%clk 0:07:06.4]} 17. Qxd7 {[%clk 0:10:22.6]} 17... Qf6 {[%clk 0:06:09.9]} 18.
Rd6 {[%clk 0:08:46.2]} 18... Rad8 {[%clk 0:06:00.2]} 19. Rxf6 {[%clk 0:08:41.2]}
19... Rxd7 {[%clk 0:05:58.2]} 20. Rxf5 {[%clk 0:08:40.2]} 20... Re5 {[%clk
0:05:47.8]} 21. Rxe5 {[%clk 0:08:29]} 21... Bxe5 {[%clk 0:05:44.1]} 22. Ne4
{[%clk 0:08:23.8]} 22... Kg7 {[%clk 0:05:35.3]} 23. c3 {[%clk 0:08:14.2]} 23...
Rd3 {[%clk 0:05:17.8]} 24. Nc5 {[%clk 0:07:41.2]} 24... Rd2 {[%clk 0:05:14.6]}
25. g4 {[%clk 0:07:20.9]} 25... Bxh2 {[%clk 0:04:47.2]} 26. Nxb7 {[%clk
0:07:14.2]} 26... Rf2 {[%clk 0:04:43.9]} 27. Bd5 {[%clk 0:06:56.5]} 27... Bc7
{[%clk 0:04:37.2]} 28. Be4 {[%clk 0:06:55.6]} 28... h6 {[%clk 0:04:24.8]} 29.
Nc5 {[%clk 0:06:55.6]} 29... Rd2 {[%clk 0:03:54.9]} 30. Nd3 {[%clk 0:06:37.6]}
30... Rh2 {[%clk 0:03:24.1]} 31. Rxh2 {[%clk 0:06:34.2]} 31... Bxh2 {[%clk
0:03:18.9]} 32. Kc2 {[%clk 0:06:30.1]} 32... Kf6 {[%clk 0:02:56.5]} 33. c4
{[%clk 0:06:29.3]} 33... Kg5 {[%clk 0:02:50.9]} 34. b4 {[%clk 0:06:28.2]} 34...
h5 {[%clk 0:02:46.7]} 35. gxh5 {[%clk 0:06:25.3]} 35... Kxh5 {[%clk 0:02:45.8]}
36. a4 {[%clk 0:06:24.3]} 36... Kg5 {[%clk 0:02:42.3]} 37. a5 {[%clk 0:06:23]}
37... f5 {[%clk 0:02:39]} 38. Bd5 {[%clk 0:06:23.9]} 38... Bc7 {[%clk
0:02:34.7]} 39. Kb3 {[%clk 0:06:17.7]} 39... f4 {[%clk 0:02:31.3]} 40. Ka4
{[%clk 0:06:17.3]} 40... a6 {[%clk 0:02:21.7]} 41. Bb7 {[%clk 0:06:18.6]} 1-0

[Event "Rapid della Domenica"]
[Site "Chess.com"]
[Date "2020.04.26"]
[Round "6"]
[White "sergiodone"]
[Black "Carbon"]
[Result "1/2-1/2"]
[WhiteElo "1550"]
[BlackElo "1820"]
[TimeControl "720+3"]
[EndTime "8:23:58 PDT"]
[Termination "Partita patta per ripetizione di mosse"]

1. e4 {[%clk 0:11:56.5]} 1... c5 {[%clk 0:12:00.2]} 2. Nf3 {[%clk 0:11:55.8]}
2... Nc6 {[%clk 0:12:01.9]} 3. c3 {[%clk 0:11:57.3]} 3... Nf6 {[%clk 0:11:59.4]}
4. Qc2 {[%clk 0:11:49.5]} 4... d6 {[%clk 0:11:50.1]} 5. d4 {[%clk 0:11:49.6]}
5... cxd4 {[%clk 0:11:50.3]} 6. cxd4 {[%clk 0:11:49.3]} 6... g6 {[%clk
0:11:39.2]} 7. a3 {[%clk 0:11:49]} 7... Bg7 {[%clk 0:11:40.5]} 8. Nc3 {[%clk
0:11:50.6]} 8... O-O {[%clk 0:11:41]} 9. h3 {[%clk 0:11:46.3]} 9... Bd7 {[%clk
0:11:35.5]} 10. Bd3 {[%clk 0:11:47.6]} 10... Rc8 {[%clk 0:11:26.7]} 11. Qe2
{[%clk 0:11:43.6]} 11... Na5 {[%clk 0:10:55.6]} 12. O-O {[%clk 0:11:43.1]} 12...
Nb3 {[%clk 0:10:51.7]} 13. Rb1 {[%clk 0:11:39.2]} 13... Nxc1 {[%clk 0:10:36.9]}
14. Rbxc1 {[%clk 0:11:38.5]} 14... a6 {[%clk 0:10:29.2]} 15. Rfe1 {[%clk
0:11:39.4]} 15... Qa5 {[%clk 0:09:58.8]} 16. Qe3 {[%clk 0:10:23.2]} 16... e5
{[%clk 0:09:25]} 17. dxe5 {[%clk 0:10:11.1]} 17... dxe5 {[%clk 0:09:24.5]} 18.
Nd5 {[%clk 0:09:58.3]} 18... Nxd5 {[%clk 0:08:53.8]} 19. exd5 {[%clk 0:09:59.1]}
19... Qxd5 {[%clk 0:08:53.9]} 20. Be4 {[%clk 0:09:38.8]} 20... Qb5 {[%clk
0:08:02.2]} 21. b4 {[%clk 0:08:54.9]} 21... f5 {[%clk 0:06:14.4]} 22. Rxc8
{[%clk 0:08:53.1]} 22... Rxc8 {[%clk 0:06:07.5]} 23. Qb3+ {[%clk 0:08:51.4]}
23... Kh8 {[%clk 0:05:59.3]} 24. Bd5 {[%clk 0:08:52.9]} 24... Bc6 {[%clk
0:05:35.7]} 25. Be6 {[%clk 0:08:43.9]} 25... Rf8 {[%clk 0:04:56.9]} 26. Ng5
{[%clk 0:08:44.2]} 26... h6 {[%clk 0:04:56.5]} 27. Nf7+ {[%clk 0:08:45.5]} 27...
Kh7 {[%clk 0:04:58.1]} 28. h4 {[%clk 0:06:50.7]} 28... h5 {[%clk 0:03:27.4]} 29.
Ng5+ {[%clk 0:06:04.4]} 29... Kh8 {[%clk 0:03:27.4]} 30. Nf7+ {[%clk 0:04:39]}
30... Kh7 {[%clk 0:03:27.5]} 31. Ng5+ {[%clk 0:03:07.8]} 31... Kh8 {[%clk
0:03:26.8]} 32. Nf7+ {[%clk 0:03:08.7]} 32... Kh7 {[%clk 0:03:27]} 1/2-1/2